fUST/lending_fUST_20240523
["ID","MTS","AMOUNT","RATE_DAILY","PERIOD"]
[327744033,1716421849301,-151.0,0.000275,2]
[327744034,1716421849310,-369.367292,0.000275,2]
[327744035,1716421849319,-369.367284,0.000275,2]
[327744036,1716421849329,-337.588622,0.000275,2]
[327744037,1716421849340,-337.588618,0.000275,2]
[327744038,1716421849351,-208.6,0.00027519,7]
[327744039,1716421849360,-187.376682,0.00027898,2]
[327744040,1716421849369,-187.37668,0.00027898,2]
[327744041,1716421849378,-282.0,0.000279,2]
[327744042,1716421849389,-192.569314,0.000279,2]
[327744043,1716421849399,-192.569314,0.000279,2]
[327744044,1716421849408,-150.074822,0.000279,2]
[327744045,1716421849420,-1000.0,0.000279,2]
[327744046,1716421849430,-154.9690062,0.00027995,2]
[327744047,1716421849440,-187.88755299,0.00027995,2]
[327744048,1716421849450,-238.60242952,0.00027995,2]
[327744049,1716421849459,-309.59754173,0.00027995,2]
[327744050,1716421849469,-191.39485386,0.00027995,2]
[327744051,1716421849478,-1042.0,0.00027995,2]
[327744052,1716421849487,-1000.0,0.00027995,8]
[327744053,1716421849496,-155.05071442,0.00027996,2]
[327744054,1716421849506,-200.80869736,0.00027996,2]
[327744055,1716421849515,-206.61514641,0.00027996,2]
[327744056,1716421849525,-295.23233406,0.00027998,2]
[327744057,1716421849535,-684.75161522,0.00027998,2]
[327744058,1716421849544,-154.98938125,0.00027998,2]
[327744059,1716421849554,-177.40182637,0.00027998,2]
[327744060,1716421849563,-3631.20230829,0.00027998,2]
[327744061,1716421849573,-760.11966554,0.00027998,2]
[327744062,1716421849583,-194.74984511,0.00027998,2]
[327744063,1716421849593,-159.70333977,0.00027998,2]
[327744064,1716421849602,-309.69031278,0.00027998,2]
[327744065,1716421849612,-172.04613006,0.00027998,2]
[327744066,1716421849622,-192.569314,0.00027998,2]
[327744067,1716421849631,-192.569314,0.00027998,2]
[327744068,1716421849641,-346.67430509,0.00027999,2]
[327744069,1716421849651,-346.67430509,0.00027999,2]
[327744070,1716421849660,-346.67430509,0.00027999,2]
[327744071,1716421849669,-346.67430509,0.00027999,2]
[327744072,1716421849679,-346.67430509,0.00027999,2]
[327744073,1716421849689,-346.67430509,0.00027999,2]
[327744074,1716421849699,-346.67430509,0.00027999,2]
[327744075,1716421849708,-346.67430509,0.00027999,2]
[327744076,1716421849718,-346.67430509,0.00027999,2]
[327744077,1716421849728,-346.67430509,0.00027999,2]
[327744078,1716421849737,-1000.0,0.00027999,9]
[327744079,1716421849747,-1000.0,0.00027999,10]
[327744080,1716421849756,-1000.0,0.00027999,11]
[327744081,1716421849766,-1000.0,0.00027999,12]
[327744082,1716421849775,-1000.27121649,0.00027999,13]
[327744083,1716421849786,-23374.89792793,0.00028,4]
[327744084,1716421850175,-5450.00910992,0.00028,4]
[327744085,1716421850669,-878.92675256,0.00015223,2]
[327744086,1716421850681,-409.62136791,0.00015223,2]
[327744087,1716421850695,-8108.11607916,0.00015223,2]
[327744088,1716421850705,-5486.14980973,0.00028,4]
[327744089,1716421865035,523.80078722,9.999e-05,2]
[327744115,1716422019180,2114.91734572,6.241e-05,2]
[327744124,1716422455991,281.67342529,9.999e-05,2]
[327744204,1716423032663,-281.67342529,0.00018899,2]
[327744206,1716423032674,-229.51044206,0.000189,2]
[327744208,1716423032683,-57.17963265,0.00019198,2]
[327744210,1716423032694,-514.40436575,0.00019198,2]
[327744212,1716423032704,-171.473055,0.00019298,2]
[327744213,1716423032713,-183.84975011,0.00020343,2]
[327744214,1716423032723,-37.72224927,0.0002044,2]
[327744215,1716423032737,-22813.31564197,0.0002044,2]
[327744216,1716423032746,-34951.47558299,0.00020441,2]
[327744217,1716423032756,-59422.90482822,0.00020442,2]
[327744218,1716423032766,-3676.61696277,0.00020443,2]
[327744258,1716423038581,-2857.67580001,0.00020443,2]
[327744426,1716423043621,-0.00830473,0.00020443,2]
[327744429,1716423043720,-3029.03183209,0.00020443,2]
[327744430,1716423043730,-500.0,0.00020445,2]
[327744431,1716423043740,-479.01386198,0.00020445,2]
[327744432,1716423043750,-424.00609565,0.00020445,2]
[327744433,1716423043760,-500.0,0.00020445,2]
[327744434,1716423043770,-500.0,0.00020445,2]
[327744435,1716423043780,-500.0,0.00020445,2]
[327744436,1716423043790,-217.28197251,0.00020445,2]
[327744437,1716423043799,-500.0,0.00020445,2]
[327744438,1716423043808,-500.0,0.00020445,2]
[327744439,1716423043818,-595.80718787,0.00020445,2]
[327744440,1716423043828,-500.0,0.00020445,2]
[327744441,1716423043837,-500.0,0.00020445,2]
[327744442,1716423043847,-500.0,0.00020445,2]
[327744443,1716423043856,-500.0,0.00020445,2]
[327744444,1716423043866,-400.362141,0.00020445,2]
[327744445,1716423043875,-500.0,0.00020445,2]
[327744446,1716423043884,-500.0,0.00020445,2]
[327744447,1716423043893,-500.0,0.00020445,2]
[327744448,1716423043903,-10384.90261643,0.00020446,11]
[327744449,1716423043912,-174.65692385,0.00020448,2]
[327744450,1716423043922,-309.84508985,0.00020575,2]
[327744451,1716423043932,-1854.17242428,0.00020576,2]
[327744452,1716423043942,-4693.98893964,0.00021,2]
[327744453,1716423043952,-174.65692381,0.00022601,2]
[327744454,1716423043961,-229.51044206,0.000239,2]
[327744455,1716423043971,-151.0,0.00023911,3]
[327744456,1716423043980,-352.589052,0.00024384,2]
[327744457,1716423043991,-174.65692381,0.00024753,2]
[327744458,1716423044003,-151.0,0.00024776,5]
[327744459,1716423044012,-151.0,0.00025641,5]
[327744460,1716423044022,-151.0,0.00026505,5]
[327744461,1716423044031,-600.0,0.0002688,2]
[327744462,1716423044040,-174.65692381,0.00026906,2]
[327744463,1716423044050,-600.0,0.0002716,2]
[327744464,1716423044060,-151.0,0.0002737,5]
[327744465,1716423044069,-1217.96183613,0.0002739,2]
[327744466,1716423044079,-342.64403192,0.00027397,2]
[327744467,1716423044088,-500.0,0.00027397,2]
[327744468,1716423044098,-192.05666639,0.00027397,2]
[327744469,1716423044108,-291.5019197,0.00027397,2]
[327744470,1716423044117,-291.5019197,0.00027397,2]
[327744471,1716423044126,-291.5019197,0.00027397,2]
[327744472,1716423044136,-196.4942409,0.00027397,2]
[327744473,1716423044146,-600.0,0.0002744,2]
[327744474,1716423044155,-2241.39381195,0.00027687,2]
[327744475,1716423044165,-600.0,0.0002772,2]
[327744476,1716423044175,-1000.0,0.000278,2]
[327744477,1716423044185,-2000.0,0.00027897,2]
[327744478,1716423044195,-153.0,0.00027945,2]
[327744479,1716423044205,-153.0,0.00027945,2]
[327744480,1716423044215,-153.0,0.00027945,2]
[327744481,1716423044225,-1038.29711596,0.00027968,2]
[327744482,1716423044235,-1521.2,0.00027987,3]
[327744483,1716423044244,-43002.81570204,0.0002799,2]
[327744484,1716423044255,-528.55641204,0.00027996,2]
[327744485,1716423044264,-26212.95298073,0.00027997,2]
[327744486,1716423044273,-1581.73856904,0.00027997,2]
[327744487,1716423044283,-238.80965777,0.00027997,2]
[327744488,1716423044294,-10595.3927042,0.00027998,2]
[327744489,1716423044304,-6805.54154569,0.00027998,2]
[327744490,1716423044314,-4727.46327144,0.00027998,2]
[327744507,1716423047290,-5161.0,0.00020913,2]
[327744508,1716423111153,818.69784794,9.999e-05,2]
[327744509,1716423144579,1497.03751621,9.999e-05,2]
[327744512,1716423219119,1592.3344584,9.391e-05,2]
[327744568,1716424231915,-516.20767634,0.00018537,2]
[327744769,1716424237632,-1279.72643616,0.00018537,2]
[327744774,1716424237707,-73.26362034,0.00018537,2]
[327744776,1716424237717,-249.5604146,0.000189,2]
[327744778,1716424237726,-3163.36423137,0.00019039,2]
[327744780,1716424237739,-6165.59881163,0.00019039,2]
[327744783,1716424237749,-224.39318338,0.00019239,2]
[327744785,1716424237758,-239.868291,0.00019306,2]
[327744787,1716424237768,-224.39318338,0.00019356,2]
[327744789,1716424237778,-2474.70957361,0.0002,2]
[327744818,1716424240143,-469.5,0.0002,2]
[327744856,1716424243584,-533.58561713,0.0002,2]
[327744860,1716424246858,-19373.2427005,0.0002,2]
[327744861,1716424246868,-1615.6429927,0.00020911,2]
[327744862,1716424246877,-1496.35073913,0.00020911,2]
[327744863,1716424246886,-818.00367347,0.00020912,2]
[327744864,1716424246896,-307.40655965,0.00020912,2]
[327744865,1716424246905,-500.0,0.00020912,2]
[327744866,1716424246915,-181.71689814,0.00020912,2]
[327744867,1716424246924,-500.0,0.00020912,2]
[327744868,1716424246934,-628.74215636,0.00020912,2]
[327744869,1716424246946,-500.0,0.00020912,2]
[327744870,1716424246956,-500.0,0.00020912,2]
[327744871,1716424246965,-500.0,0.00020912,2]
[327744872,1716424246974,-500.0,0.00020912,2]
[327744873,1716424246983,-470.1086423,0.00020912,2]
[327744874,1716424246995,-500.0,0.00020912,2]
[327744875,1716424247006,-500.0,0.00020912,2]
[327744876,1716424247015,-500.0,0.00020912,2]
[327744877,1716424247025,-500.0,0.00020912,2]
[327744878,1716424247035,-500.0,0.00020912,2]
[327744879,1716424247046,-500.0,0.00020912,2]
[327744880,1716424247055,-500.0,0.00020912,2]
[327744881,1716424247064,-500.0,0.00020912,2]
[327744882,1716424247074,-500.0,0.00020912,2]
[327744883,1716424247083,-567.81401728,0.00020912,2]
[327744884,1716424247094,-500.0,0.00020912,2]
[327744885,1716424247103,-500.0,0.00020912,2]
[327744886,1716424247112,-500.0,0.00020912,2]
[327744887,1716424247122,-500.0,0.00020912,2]
[327744888,1716424247131,-500.0,0.00020912,2]
[327744889,1716424247140,-500.0,0.00020912,2]
[327744890,1716424247149,-75.78523154,0.00020912,2]
[327744891,1716424247179,-424.21476846,0.00020912,2]
[327744892,1716424247189,-188.34260711,0.00020913,11]
[327744954,1716425432830,-1929.44365926,0.00018865,2]
[327744963,1716425438037,-385.72997098,0.00018865,2]
[327744965,1716425438050,-5582.13625237,0.00018865,2]
[327744967,1716425438059,-2598.5410692,0.00018866,2]
[327744969,1716425438069,-1869.19773284,0.00018867,2]
[327744971,1716425438079,-6145.21737613,0.00018896,2]
[327744973,1716425438088,-1633.22795286,0.00018898,2]
[327744976,1716425438100,-380.12593403,0.00018898,2]
[327745045,1716425443283,-2307.40719591,0.00018898,2]
[327745047,1716425443293,-295.35813693,0.000189,2]
[327745049,1716425443302,-171.473055,0.00019638,2]
[327745051,1716425443312,-214.85394081,0.0002,2]
[327745053,1716425443322,-9559.64560383,0.0002,2]
[327745055,1716425443331,-527.39256429,0.00020601,4]
[327745057,1716425443341,-183.7312369,0.00020602,2]
[327745059,1716425443350,-310.00753727,0.00020702,2]
[327745061,1716425443360,-528.0,0.00020901,3]
[327745064,1716425443371,-15817.8462281,0.00020909,2]
[327745069,1716425443394,-2000.0,0.00020909,2]
[327745135,1716425446226,-5033.19166314,0.00020909,2]
[327745136,1716425446236,-249.0414691,0.0002091,11]
[327745137,1716425446245,-17052.21090282,0.0002091,2]
[327745138,1716425446261,-9799.4,0.0002091,2]
[327745139,1716425505359,316.38176035,9.999e-05,2]
[327745212,1716426632347,-1869.19773284,0.00016872,2]
[327745214,1716426632357,-159.70179481,0.00016872,2]
[327745216,1716426632369,-1086.3237768,0.00016872,2]
[327745218,1716426632380,-33705.45001138,0.00016872,2]
[327745220,1716426632390,-22868.8530519,0.00016873,2]
[327745222,1716426632400,-258.283424,0.00017011,2]
[327745224,1716426632409,-606.13906596,0.00017799,2]
[327745226,1716426632419,-448.7784117,0.00017799,2]
[327745229,1716426632429,-154.9635035,0.00017897,2]
[327745233,1716426632438,-448.7784117,0.00018552,2]
[327745237,1716426632447,-4580.6319304,0.00018899,2]
[327745505,1716426642599,-249.993024,0.00018899,2]
[327745515,1716426642680,-22308.01351083,0.00018899,2]
[327745517,1716426642690,-196.90542462,0.000189,2]
[327745520,1716426642700,-448.7784117,0.00019305,2]
[327745523,1716426642710,-9160.70542233,0.0002,11]
[327745526,1716426642720,-448.7784117,0.00020057,2]
[327745529,1716426642730,-606.1390659,0.0002033,2]
[327745532,1716426642744,-305.56278524,0.00020702,2]
[327745535,1716426642754,-448.7784117,0.0002081,2]
[327745538,1716426642764,-316.15201913,0.00020907,2]
[327745540,1716426642775,-156.43065915,0.00020908,2]
[327745543,1716426642785,-410.45768134,0.00020909,2]
[327745545,1716426642794,-942.77170322,0.00020909,2]
[327745547,1716426642804,-261.05215328,0.00020909,2]
[327745550,1716426642817,-658.02873829,0.00020909,2]
[327745552,1716426642826,-207.24447727,0.00020909,2]
[327745555,1716426642835,-1450.80884896,0.00020909,2]
[327745557,1716426642845,-547.54414224,0.00020909,2]
[327745559,1716426642855,-247.446,0.00020909,2]
[327745561,1716426642864,-500.0,0.00020909,2]
[327745563,1716426642873,-500.0,0.00020909,2]
[327745565,1716426642882,-441.03259269,0.00020909,2]
[327745567,1716426642892,-510.94753197,0.00020909,2]
[327745569,1716426642901,-500.0,0.00020909,2]
[327745571,1716426642910,-500.0,0.00020909,2]
[327745573,1716426642920,-500.0,0.00020909,2]
[327745575,1716426642929,-246.66243738,0.00020909,2]
[327745577,1716426642938,-500.0,0.00020909,2]
[327745579,1716426642947,-474.85543005,0.00020909,2]
[327745581,1716426642956,-500.0,0.00020909,2]
[327745583,1716426642966,-500.0,0.00020909,2]
[327745585,1716426642975,-500.0,0.00020909,2]
[327745587,1716426642984,-500.0,0.00020909,2]
[327745589,1716426642993,-500.0,0.00020909,2]
[327745591,1716426643002,-500.0,0.00020909,2]
[327745593,1716426643012,-4639.7610463,0.0002091,2]
[327745595,1716426643021,-72864.66227029,0.0002091,2]
[327747804,1716426666670,376.78377029,0.00015,2]
[327749892,1716426688236,1149.63675721,0.00015,2]
[327749967,1716426689185,158.58875339,9.999e-05,2]
[327751859,1716426717068,1151.57788196,9.999e-05,2]
[327751864,1716427247478,487.94829849,9.999e-05,2]
[327751868,1716427314365,943.04117326,0.00015,2]
[327751869,1716427318954,550.91569866,9.999e-05,2]
[327751872,1716427762184,-1554.53157506,0.0001513,2]
[327751873,1716427768959,943.04117326,0.00015,2]
[327751874,1716427769261,-9565.34127,0.0001513,2]
[327751875,1716427769488,550.91569866,9.999e-05,2]
[327751876,1716427790204,250.0,0.0001443,2]
[327751877,1716427795931,234.35329789,9.999e-05,2]
[327751878,1716427797571,3373.07904587,9.999e-05,2]
[327751879,1716427819545,10301.99240701,9.999e-05,2]
[327751880,1716427832058,488.03965703,9.999e-05,2]
[327751903,1716427832631,-310.0,0.00015029,2]
[327751905,1716427832643,-1559.43776659,0.00015029,2]
[327751907,1716427832653,-242.55917798,0.0001503,2]
[327751909,1716427832662,-2127.39584562,0.00015127,2]
[327751911,1716427832673,-32829.28865577,0.00015127,2]
[327751913,1716427832683,-59429.50731458,0.00015127,2]
[327751915,1716427832692,-9402.71670639,0.00015128,2]
[327751918,1716427832702,-155.02622222,0.00015128,2]
[327751920,1716427832712,-155.08259674,0.00015128,2]
[327751921,1716427832721,-154.95973864,0.00015128,2]
[327751923,1716427832731,-155.37828349,0.00015128,2]
[327751925,1716427832740,-942.23276314,0.00015129,2]
[327751927,1716427832749,-664.50867027,0.00015129,2]
[327751929,1716427832760,-686.59588535,0.00015133,2]
[327751931,1716427832769,-24890.0,0.00015234,2]
[327751933,1716427832779,-166.7229165,0.00016125,2]
[327751934,1716427832788,-697.92862,0.00016188,2]
[327751936,1716427832797,-242.55917798,0.00016248,2]
[327751938,1716427832807,-154.95351395,0.000165,2]
[327751939,1716427832816,-242.55917798,0.00017465,2]
[327751940,1716427832824,-426.3321048,0.00017625,2]
[327751941,1716427832877,-500.0,0.00017625,2]
[327751949,1716427839240,-2197.60191749,0.00017625,2]
[327751951,1716427839250,-7841.38489068,0.00017638,2]
[327751953,1716427839261,-686.59588529,0.00018045,2]
[327751955,1716427839271,-242.55917798,0.00018683,2]
[327751957,1716427839280,-85.53697839,0.000189,2]
[327751959,1716427839293,-64.46302161,0.000189,2]
[327751961,1716427839303,-162.58497268,0.00019,2]
[327751963,1716427839312,-234.66177525,0.00019178,2]
[327751965,1716427839322,-500.0,0.00019178,2]
[327751967,1716427839331,-189.0139683,0.00019178,2]
[327751969,1716427839341,-420.20190554,0.00019178,2]
[327751971,1716427839356,-133.08235405,0.00019178,2]
[327751973,1716427839365,-500.0,0.00019178,2]
[327751975,1716427839374,-542.45662902,0.00019178,2]
[327751977,1716427839384,-211.31138398,0.00019178,2]
[327751979,1716427839393,-168.14861,0.00019178,2]
[327751981,1716427839402,-242.55917798,0.000199,2]
[327751983,1716427839412,-1898.47491461,0.00019994,2]
[327751985,1716427839422,-3645.94934583,0.0002,2]
[327751988,1716427839435,-18179.19338638,0.0002,2]
[327752056,1716427842423,-1025.89515903,0.0002,2]
[327752057,1716427842432,-3977.95327634,0.0002,2]
[327752058,1716427842442,-151.0,0.0002,2]
[327752059,1716427842453,-151.0,0.0002,2]
[327752060,1716427842464,-151.0,0.0002,2]
[327752061,1716427842473,-151.0,0.0002,2]
[327752062,1716427842483,-151.0,0.0002,2]
[327752063,1716427842492,-151.0,0.0002,2]
[327752064,1716427842501,-151.0,0.0002,2]
[327752065,1716427842510,-152.258202,0.0002,2]
[327752066,1716427842520,-151.903126,0.0002,2]
[327752067,1716427842530,-151.0,0.0002,2]
[327752068,1716427842539,-159.699704,0.0002,2]
[327752069,1716427842548,-169.42153836,0.00020702,2]
[327752070,1716427842558,-1057.92299394,0.00020904,2]
[327752071,1716427842567,-458.0,0.00020906,2]
[327752072,1716427842576,-327.92793333,0.00020907,2]
[327752073,1716427842586,-186.83038505,0.00020907,2]
[327752074,1716427842598,-618.35590669,0.00020907,2]
[327752075,1716427842607,-274.24725433,0.00020907,2]
[327752076,1716427842616,-236.44820243,0.00020907,2]
[327752077,1716427842625,-328.22139918,0.00020907,2]
[327752078,1716427842634,-359.98066622,0.00020907,2]
[327752079,1716427842643,-827.91694481,0.00020907,2]
[327752080,1716427842652,-158.37993282,0.00020907,2]
[327752081,1716427842662,-154.98450155,0.00020908,2]
[327752082,1716427842671,-340.37759599,0.00020908,2]
[327752083,1716427842681,-1029.24785178,0.0002091,11]
[327752084,1716427842690,-10623.52956993,0.0002091,2]
[327752085,1716427842702,-2479.8072509,0.0002091,2]
[327752092,1716427843217,-3467.55,0.0002091,2]
[327752093,1716427843229,-9565.3412631,0.0002091,2]
[327752132,1716428574000,1151.84012163,9.999e-05,2]
[327752194,1716429038873,-154.95351395,0.00016979,2]
[327752196,1716429038882,-235.79625196,0.0001698,2]
[327752198,1716429038894,-114.59611804,0.0001698,2]
[327752200,1716429038903,-1186.95994085,0.00017588,2]
[327752256,1716429044863,-0.82425639,0.00017489,2]
[327752264,1716429045981,-154.01260478,0.00017489,2]
[327752265,1716429045991,-58242.54737373,0.00017588,2]
[327752266,1716429046000,-65.07656942,0.00017589,2]
[327752267,1716429046012,-16283.86720985,0.00017589,2]
[327752268,1716429046023,-8551.05622073,0.00017589,2]
[327752269,1716429046032,-1155.86319119,0.00018421,2]
[327752270,1716429046043,-154.83686116,0.00018595,2]
[327752271,1716429046053,-865.24407607,0.000189,2]
[327752272,1716429046063,-162.61642107,0.00019,2]
[327752273,1716429046073,-169.5432741,0.00019178,2]
[327752274,1716429046082,-1565.9329403,0.00019396,2]
[327752275,1716429046092,-990.512438,0.00019593,2]
[327752276,1716429046101,-154.83686116,0.00019702,2]
[327752277,1716429046110,-136.15771622,0.00019999,11]
[327752285,1716429049552,-4662.09905175,0.00019999,11]
[327752286,1716429049562,-29534.57130315,0.00019999,2]
[327752287,1716429049571,-580.66827143,0.00019999,2]
[327752288,1716429049581,-451.40753982,0.00019999,2]
[327752289,1716429049590,-3699.09989558,0.0002,2]
[327752290,1716429049599,-200.79047486,0.0002,2]
[327752291,1716429049608,-16460.00201611,0.0002,2]
[327752292,1716429049620,-6394.35728588,0.0002,2]
[327752293,1716429049629,-2000.0,0.0002,2]
[327752294,1716429049638,-2000.0,0.0002,3]
[327752295,1716429049649,-417.48839794,0.00020572,2]
[327752296,1716429049658,-4225.76789331,0.00020713,2]
[327752297,1716429049667,-154.83686116,0.00020808,2]
[327752298,1716429049677,-155.09139302,0.00020907,2]
[327752299,1716429049686,-3969.08351584,0.00020907,2]
[327752300,1716429049695,-6075.63054401,0.00020907,2]
[327752301,1716429049705,-918.43079539,0.00020908,2]
[327752302,1716429049715,-24851.84004586,0.0002091,2]
[327752303,1716429049724,-154.95351395,0.0002091,2]
[327752304,1716429049734,-151.0,0.0002091,2]
[327752305,1716429049744,-151.0,0.0002091,2]
[327752306,1716429049753,-154.594929,0.0002091,2]
[327752307,1716429049762,-151.0,0.0002091,2]
[327752308,1716429049772,-151.0,0.0002091,2]
[327752309,1716429049781,-151.0,0.0002091,2]
[327752310,1716429049791,-152.366807,0.0002091,2]
[327752311,1716429049801,-151.847566,0.0002091,2]
[327752312,1716429049810,-151.565251,0.0002091,2]
[327752313,1716429049820,-151.0,0.0002091,2]
[327752314,1716429049830,-176.597094,0.0002091,2]
[327752315,1716429049841,-176.597094,0.0002091,2]
[327752316,1716429049852,-151.0,0.0002091,2]
[327752317,1716429049863,-151.0,0.0002091,2]
[327752318,1716429049873,-151.0,0.0002091,2]
[327752319,1716429049883,-151.0,0.0002091,2]
[327752320,1716429049894,-151.0,0.0002091,2]
[327752321,1716429049904,-151.0,0.0002091,2]
[327752322,1716429049914,-151.0,0.0002091,2]
[327752323,1716429049925,-151.0,0.0002091,2]
[327752324,1716429049935,-157.415301,0.0002091,2]
[327752325,1716429049944,-152.519479,0.0002091,2]
[327752326,1716429049954,-214.61937,0.0002091,2]
[327752327,1716429049963,-151.0,0.0002091,2]
[327752328,1716429049972,-151.0,0.0002091,2]
[327752329,1716429049982,-151.0,0.0002091,2]
[327752330,1716429049991,-151.0,0.0002091,2]
[327752331,1716429050000,-151.714719,0.0002091,2]
[327752332,1716429050012,-151.714719,0.0002091,2]
[327752333,1716429050021,-10452.44305365,0.00020911,2]
[327752334,1716429050031,-154.9690062,0.00020911,2]
[327752335,1716429050040,-230.85037262,0.00020911,2]
[327752336,1716429050049,-194.44701539,0.00020911,2]
[327752337,1716429050058,-2597.95193588,0.00020911,2]
[327752338,1716429050067,-527.39256429,0.00020911,4]
[327752339,1716429050076,-7885.4719875,0.00020911,2]
[327752340,1716429050086,-151.0,0.00020911,2]
[327752341,1716429050096,-151.0,0.00020911,2]
[327752342,1716429050105,-151.0,0.00020911,2]
[327752343,1716429050114,-151.0,0.00020911,2]
[327752344,1716429050123,-151.0,0.00020911,2]
[327752345,1716429050132,-181.48879,0.00020911,2]
[327752346,1716429050141,-176.597094,0.00020911,2]
[327752347,1716429050150,-176.597094,0.00020911,2]
[327752348,1716429050159,-151.0,0.00020911,2]
[327752349,1716429050169,-151.0,0.00020911,2]
[327752350,1716429050178,-151.0,0.00020911,2]
[327752351,1716429050187,-151.0,0.00020911,2]
[327752352,1716429050196,-151.0,0.00020911,2]
[327752353,1716429050205,-151.0,0.00020911,2]
[327752354,1716429050215,-151.0,0.00020911,2]
[327752355,1716429050224,-151.0,0.00020911,2]
[327752356,1716429050233,-151.0,0.00020911,2]
[327752357,1716429050243,-151.0,0.00020911,2]
[327752358,1716429050252,-151.0,0.00020911,2]
[327752359,1716429050262,-151.0,0.00020911,2]
[327752360,1716429050271,-151.714719,0.00020911,2]
[327752361,1716429050280,-151.714719,0.00020911,2]
[327752362,1716429050290,-271.6671126,0.00020912,11]
[327752363,1716429050331,-893.73484274,0.00020912,11]
[327752364,1716429050340,-2106.26515726,0.00020912,2]
[327752380,1716429950245,550.9904196,9.999e-05,2]
[327752381,1716430009533,2090.91663187,9.999e-05,2]
[327752382,1716430029548,2090.91663187,9.999e-05,2]
[327752383,1716430053538,2090.91663187,9.999e-05,2]
[327752388,1716430075646,2090.91663187,9.999e-05,2]
[327752389,1716430093548,2090.91663187,9.999e-05,2]
[327752390,1716430111558,2090.91663187,9.999e-05,2]
[327752395,1716430133552,2090.91663187,9.999e-05,2]
[327752401,1716430155559,2090.91663187,9.999e-05,2]
[327752412,1716430175558,1264.15556481,9.999e-05,2]
[327752452,1716430232198,-576.82938405,0.000189,2]
[327752454,1716430232208,-162.61642107,0.00019,2]
[327752456,1716430232218,-173.80022225,0.00019623,2]
[327752510,1716430276438,1339.6886208,9.999e-05,2]
[327752511,1716430299122,3258.79272561,9.999e-05,2]
[327752513,1716430316738,1151.84012163,9.999e-05,2]
[327752514,1716430317153,1451.43050368,0.0001,2]
[327752523,1716430595808,550.9904196,9.999e-05,2]
[327752528,1716430817260,286.84934161,0.00015,2]
[327752529,1716430841176,285.83068385,0.00015,2]
[327752530,1716430861188,264.66585674,0.00015,2]
[327752531,1716430870621,154.93802479,0.00015,2]
[327752532,1716430888541,154.93802479,0.00015,2]
[327752533,1716430903258,154.93802479,0.00015,2]
[327752534,1716430920545,229.75707512,0.00015,2]
[327752535,1716430938836,1151.84012163,9.999e-05,2]
[327752536,1716431093168,-34956.68450139,0.00017709,2]
[327752537,1716431093194,-1151.84012163,0.0001771,2]
[327752538,1716431093219,-3891.47537698,0.0001771,2]
[327752539,1716431254380,550.9904196,9.999e-05,2]
[327752541,1716431358990,154.93802479,0.000165,2]
[327752563,1716431432461,-839.27085456,0.00016714,2]
[327752565,1716431432473,-8564.64636586,0.00016714,2]
[327752566,1716431432483,-24900.0,0.00016715,2]
[327752567,1716431432493,-304.337897,0.00017576,2]
[327752568,1716431432502,-551.87877599,0.00017712,2]
[327752569,1716431432512,-154.93802479,0.00017712,2]
[327752570,1716431432522,-13312.50229965,0.00017714,2]
[327752571,1716431432534,-1048.245,0.00017714,2]
[327752572,1716431432546,-44177.83008349,0.00017714,2]
[327752573,1716431432556,-1722.15354249,0.00017716,2]
[327752574,1716431432565,-10512.91470053,0.00017716,2]
[327752575,1716431432575,-1149.81947875,0.00017717,2]
[327752576,1716431432584,-5021.40640527,0.00017717,2]
[327752590,1716431438716,-627.60224677,0.00017717,2]
[327752591,1716431438727,-1116.15367649,0.00018,2]
[327752592,1716431438737,-384.5529227,0.000189,2]
[327752593,1716431438747,-162.61642107,0.00019,2]
[327752594,1716431438757,-280.56101323,0.00019124,2]
[327752595,1716431438767,-168.148609,0.00019178,2]
[327752596,1716431438776,-155.11627612,0.00019204,2]
[327752597,1716431438786,-4726.38747324,0.00019205,2]
[327752598,1716431438795,-412.67183315,0.00019307,2]
[327752599,1716431438805,-4177.15434319,0.00019406,2]
[327752600,1716431438814,-248.85783061,0.00019999,2]